bitfinex/quotes_BTCUSD_20241001
["timestamp","ask_amount","ask_price","bid_price","bid_amount"]
[1727754977133,0.04827762,63823.0,63822.0,0.28763974]
[1727754977347,0.00125916,63823.0,63822.0,0.28763974]
[1727754979013,0.04828224,63823.0,63822.0,0.28763974]
[1727754979933,0.00125916,63823.0,63822.0,0.50853413]
[1727754980402,0.00125916,63823.0,63822.0,0.18863974]
[1727754981305,0.07180357,63823.0,63822.0,0.18863974]
[1727754981522,0.00125916,63823.0,63822.0,0.18863974]
[1727754982710,0.00125916,63823.0,63822.0,0.28623974]
[1727754983414,0.00125916,63823.0,63822.0,0.36913974]
[1727754983637,0.00125916,63823.0,63822.0,0.48813413]
[1727754983884,0.00125916,63823.0,63822.0,0.30923974]
[1727754984374,0.07180357,63823.0,63822.0,0.30923974]
[1727754985555,0.00125916,63823.0,63822.0,0.30923974]
[1727754985802,0.07182822,63823.0,63822.0,0.30923974]
[1727754986479,0.00125916,63823.0,63822.0,0.30923974]
[1727754986717,0.07182725,63823.0,63822.0,0.30923974]
[1727754987405,0.00125916,63823.0,63822.0,0.30923974]
[1727754989805,0.00125916,63823.0,63822.0,0.30969999]
[1727754990052,0.00125916,63823.0,63822.0,0.28869999]
[1727754991186,0.00125916,63823.0,63822.0,0.28669999]
[1727754991436,0.00125916,63823.0,63822.0,0.18909999]
[1727754991645,0.09534995,63823.0,63822.0,0.18909999]
[1727754991867,0.11887265,63823.0,63822.0,0.18909999]
[1727754992083,0.17023454,63823.0,63822.0,0.18909999]
[1727754992515,0.28784803,63823.0,63822.0,0.18909999]
[1727754992962,0.17023454,63823.0,63822.0,0.18909999]
[1727754993436,0.17023454,63823.0,63822.0,0.02741499]
[1727754993437,0.79567453,63823.0,63822.0,0.02741499]
[1727754993666,0.79567453,63823.0,63822.0,0.01056035]
[1727754993883,0.79567453,63823.0,63822.0,0.00110252]
[1727754994096,0.79567453,63823.0,63822.0,0.00064227]
[1727754994601,1.03260743,63823.0,63822.0,0.00064227]
[1727754994818,0.75896973,63823.0,63822.0,0.00064227]
[1727754995246,0.75896973,63823.0,63821.0,0.001646]
[1727754995247,0.60228673,63823.0,63821.0,0.001646]
[1727754995469,0.48211818,63822.0,63821.0,0.001646]
[1727754996135,0.71905108,63822.0,63821.0,0.001646]
[1727754997059,0.78418352,63822.0,63821.0,0.002646]
[1727754997272,0.74176916,63822.0,63821.0,0.002646]
[1727754999506,0.90027642,63822.0,63821.0,0.002646]
[1727754999940,0.97717642,63822.0,63821.0,0.002646]
[1727755000166,0.81866916,63822.0,63821.0,0.002646]
[1727755000396,0.7402387,63822.0,63821.0,0.002646]
[1727755000624,0.9771716,63822.0,63821.0,0.002646]
[1727755002259,0.81866916,63822.0,63821.0,0.002646]
[1727755004919,0.489218,63822.0,63821.0,0.002646]
[1727755005166,0.34843318,63822.0,63821.0,0.002646]
[1727755005396,0.50511818,63822.0,63821.0,0.002646]
[1727755005627,0.50511818,63822.0,63821.0,0.01608021]
[1727755005866,0.33443318,63822.0,63821.0,0.00311116]
[1727755006114,0.33443318,63822.0,63821.0,0.001646]
[1727755006115,0.33943318,63822.0,63821.0,0.001646]
[1727755006361,0.50275722,63822.0,63821.0,0.01608021]
[1727755006600,0.48875722,63822.0,63821.0,0.00311116]
[1727755006828,0.49975722,63822.0,63821.0,0.002646]
[1727755007046,0.49175722,63822.0,63821.0,0.001646]
[1727755007297,0.48075722,63822.0,63821.0,0.001646]
[1727755007522,0.49075722,63822.0,63821.0,0.002646]
[1727755008706,0.50075722,63822.0,63821.0,0.002646]
[1727755008939,0.49075722,63822.0,63821.0,0.001646]
[1727755009167,0.33407222,63822.0,63821.0,0.002646]
[1727755009399,0.34389522,63822.0,63821.0,0.002646]
[1727755009631,0.34389522,63822.0,63821.0,0.01608021]
[1727755009923,0.34389522,63822.0,63821.0,0.00311116]
[1727755011115,0.18753642,63822.0,63821.0,0.15979916]
[1727755011613,0.18753642,63822.0,63821.0,0.17276821]
[1727755013043,0.019823,63822.0,63821.0,0.60329606]
[1727755013299,0.019823,63822.0,63821.0,0.6001626]
[1727755014232,0.019823,63822.0,63821.0,0.5991626]
[1727755014233,0.010823,63822.0,63821.0,0.5991626]
[1727755014478,0.011823,63822.0,63821.0,0.6091626]
[1727755014742,0.010823,63822.0,63821.0,0.48016821]
[1727755015005,0.011823,63822.0,63821.0,0.46316821]
[1727755015243,0.001823,63822.0,63821.0,0.46316821]
[1727755015690,0.010823,63822.0,63821.0,0.46316821]
[1727755015913,0.010823,63822.0,63821.0,0.46516821]
[1727755016159,0.010823,63822.0,63821.0,0.48816821]
[1727755016160,0.001823,63822.0,63821.0,0.48816821]
[1727755016411,0.000823,63822.0,63821.0,0.48616821]
[1727755016893,0.000823,63822.0,63821.0,0.48216821]
[1727755017111,0.000823,63822.0,63821.0,0.49616821]
[1727755017112,0.001823,63822.0,63821.0,0.49616821]
[1727755017356,0.00054096,63822.0,63821.0,0.48616821]
[1727755017827,0.00154096,63822.0,63821.0,0.49516821]
[1727755018053,0.00054096,63822.0,63821.0,0.48616821]
[1727755018278,0.00154096,63822.0,63821.0,0.49616821]
[1727755018497,0.00154096,63822.0,63821.0,0.49216821]
[1727755018716,0.00254096,63822.0,63821.0,0.49716821]
[1727755019381,0.00154096,63822.0,63821.0,0.49216821]
[1727755019600,0.00154096,63822.0,63821.0,0.48716821]
[1727755019838,0.00254096,63822.0,63821.0,0.49616821]
[1727755020111,0.00254096,63822.0,63821.0,0.64362601]
[1727755020581,0.00354096,63822.0,63821.0,0.65362601]
[1727755023030,0.00025916,63823.0,63822.0,0.495915]
[1727755023249,0.00025916,63823.0,63822.0,0.83377781]
[1727755023481,0.00025916,63823.0,63822.0,0.847164]
[1727755024167,0.23677793,63833.0,63832.0,0.63346601]
[1727755024610,0.23677793,63833.0,63832.0,0.63846601]
[1727755024865,0.000823,63840.0,63839.0,0.161644]
[1727755025074,0.000823,63840.0,63839.0,0.254144]
[1727755026008,0.000823,63840.0,63839.0,0.2572765]
[1727755026442,0.000823,63840.0,63839.0,0.27014952]
[1727755026689,0.000823,63840.0,63839.0,0.27214952]
[1727755027155,0.00054128,63840.0,63839.0,0.27252632]
[1727755027389,0.00054128,63840.0,63839.0,0.17689382]
[1727755027613,0.00054128,63840.0,63839.0,0.17489382]
[1727755027842,0.00054128,63840.0,63839.0,0.17689382]
[1727755028995,0.00054128,63840.0,63839.0,0.17489382]
[1727755029206,0.00054128,63840.0,63839.0,0.17689382]
[1727755029853,0.00454128,63840.0,63839.0,0.17689382]
[1727755030717,0.00054128,63840.0,63839.0,0.17489382]
[1727755031868,0.00354128,63840.0,63839.0,0.17489382]
[1727755032504,0.00054128,63840.0,63839.0,0.17489382]
[1727755033613,0.00054128,63840.0,63839.0,0.17589382]
[1727755033839,0.00054128,63840.0,63839.0,0.17489382]
[1727755034268,0.00054128,63840.0,63839.0,0.17789382]
[1727755034939,0.00054128,63840.0,63839.0,0.18102634]
[1727755035392,0.00254128,63840.0,63839.0,0.18102634]
[1727755035620,0.00254128,63840.0,63839.0,0.18302634]
[1727755035868,0.00054128,63840.0,63839.0,0.18302634]
[1727755036089,0.00054128,63840.0,63839.0,0.17802634]
[1727755036321,0.00054128,63840.0,63839.0,0.18702634]
[1727755036768,0.00054128,63840.0,63839.0,0.18502634]
[1727755037061,0.00054128,63840.0,63839.0,0.19002634]
[1727755041739,0.00054128,63840.0,63839.0,0.30982635]
[1727755041952,0.00054128,63840.0,63839.0,0.40982635]
[1727755042202,0.00054128,63840.0,63839.0,0.40669382]
[1727755042907,0.00054128,63840.0,63839.0,0.40869382]
[1727755045269,0.00054128,63840.0,63839.0,0.41033982]
[1727755047335,0.00026006,63840.0,63839.0,0.41033982]
[1727755050233,0.00026006,63840.0,63839.0,0.40833982]
[1727755050675,0.00026006,63840.0,63839.0,0.41033982]
[1727755054012,0.00026006,63840.0,63839.0,0.18853982]
[1727755057427,0.04714978,63840.0,63839.0,0.18853982]
[1727755058560,0.07059464,63840.0,63839.0,0.18853982]
[1727755059928,0.0940395,63840.0,63839.0,0.18853982]
[1727755060210,0.17018051,63840.0,63839.0,0.18853982]
[1727755060403,0.28740481,63840.0,63839.0,0.18853982]
[1727755061053,0.17018051,63840.0,63839.0,0.18853982]
[1727755061483,0.11748436,63840.0,63839.0,0.18853982]
[1727755062324,0.28740481,63840.0,63839.0,0.18853982]
[1727755063434,0.17018051,63840.0,63839.0,0.18853982]
[1727755063653,0.16953973,63840.0,63839.0,0.18853982]
[1727755064778,0.16953973,63840.0,63839.0,0.02689582]
[1727755064779,0.24803973,63840.0,63839.0,0.02689582]
[1727755065009,0.24803973,63840.0,63839.0,0.18353982]
[1727755066141,0.24803973,63840.0,63839.0,0.17653982]
[1727755066362,0.25003973,63840.0,63839.0,0.17153982]
[1727755066587,0.24803973,63840.0,63839.0,0.17553982]
[1727755066795,0.16953973,63840.0,63839.0,0.17553982]
[1727755067010,0.17153973,63840.0,63839.0,0.17553982]
[1727755067940,0.25063973,63840.0,63839.0,0.17153982]
[1727755068151,0.25663973,63840.0,63839.0,0.17253982]
[1727755068593,0.25743992,63840.0,63839.0,0.17253982]
[1727755068814,0.25543992,63840.0,63839.0,0.17253982]
[1727755069069,0.25843992,63840.0,63839.0,0.17253982]
[1727755073422,0.25852748,63840.0,63839.0,0.17253982]
[1727755076086,0.17942748,63840.0,63839.0,0.17253982]
[1727755076949,0.32055681,63840.0,63839.0,0.17253982]
[1727755078267,0.00926006,63840.0,63839.0,0.17253982]
[1727755078474,0.15038293,63840.0,63839.0,0.17253982]
[1727755078686,0.14438293,63840.0,63839.0,0.17153982]
[1727755078816,0.14738293,63840.0,63839.0,0.17253982]
[1727755079250,0.14938293,63840.0,63839.0,0.17253982]
[1727755079458,0.14138293,63840.0,63839.0,0.17153982]
[1727755079866,0.31159731,63840.0,63839.0,0.17153982]
[1727755080692,0.17047444,63840.0,63839.0,0.17153982]
[1727755081311,0.17247444,63840.0,63839.0,0.17153982]
[1727755081709,0.17056453,63840.0,63839.0,0.17153982]
[1727755082129,0.17656453,63840.0,63839.0,0.17153982]
[1727755082333,0.17456453,63840.0,63839.0,0.17153982]
[1727755082545,0.17656453,63840.0,63839.0,0.25153982]
[1727755083572,0.17656453,63840.0,63839.0,0.34563982]
[1727755083775,0.17256453,63840.0,63839.0,0.46462226]
[1727755084081,0.29015016,63840.0,63839.0,0.46462226]
[1727755084283,0.29215016,63840.0,63839.0,0.46462226]
[1727755084712,0.29215016,63840.0,63839.0,0.48962226]
[1727755084713,0.17256453,63840.0,63839.0,0.48962226]
[1727755085056,0.00226006,63840.0,63839.0,0.48962226]
[1727755085518,0.1730824,63840.0,63839.0,0.48962226]
[1727755085731,0.1730824,63840.0,63839.0,0.64608006]
[1727755085947,0.07280835,63840.0,63839.0,0.64608006]
[1727755086153,0.00226006,63840.0,63839.0,0.64608006]
[1727755086741,0.04928846,63840.0,63839.0,0.64608006]
[1727755086966,0.04728846,63840.0,63839.0,0.64608006]
[1727755087246,0.04728846,63840.0,63839.0,0.64808006]
[1727755087652,0.04728846,63840.0,63839.0,0.64608006]
[1727755088106,0.04728846,63840.0,63839.0,0.65108006]
[1727755088542,0.04728846,63840.0,63839.0,0.68151006]
[1727755088739,0.04828846,63840.0,63839.0,0.68751006]
[1727755088939,0.04828846,63840.0,63839.0,0.68351006]
[1727755089079,0.04828846,63840.0,63839.0,0.69351006]
[1727755089503,0.04828846,63840.0,63839.0,0.68351006]
[1727755089710,0.04828846,63840.0,63839.0,0.57652762]
[1727755089920,0.04728846,63840.0,63839.0,0.68951006]
[1727755090377,0.04828846,63840.0,63839.0,0.69751006]
[1727755090811,0.04728846,63840.0,63839.0,0.68951006]
[1727755091041,0.04828846,63840.0,63839.0,0.69951006]
[1727755091250,0.04828051,63840.0,63839.0,0.69951006]
[1727755092755,0.00126006,63840.0,63839.0,0.69951006]
[1727755096930,0.00126006,63840.0,63839.0,0.79951006]
[1727755098061,0.00126006,63840.0,63839.0,0.81791408]
[1727755098276,0.000923,63845.0,63839.0,0.81791408]
[1727755098277,0.000923,63845.0,63840.0,0.1]
[1727755098527,0.000923,63845.0,63844.0,0.58401344]
[1727755098774,0.000923,63845.0,63844.0,0.75332576]
[1727755100133,0.000923,63845.0,63844.0,0.76032576]
[1727755100360,0.000923,63845.0,63844.0,0.79675576]
[1727755100810,0.000923,63845.0,63844.0,0.79175576]
[1727755101032,0.000923,63845.0,63844.0,0.80075576]
[1727755101256,0.001923,63845.0,63844.0,0.79375576]
[1727755101533,0.001923,63845.0,63844.0,0.80475576]
[1727755101994,0.001923,63845.0,63844.0,0.79375576]
[1727755102258,0.001923,63845.0,63844.0,0.80775576]
[1727755102491,0.000923,63845.0,63844.0,0.79875576]
[1727755102727,0.001923,63845.0,63844.0,0.81275576]
[1727755103872,0.001923,63845.0,63844.0,0.82747882]
[1727755107384,0.00164178,63845.0,63844.0,0.82747882]
[1727755115130,0.00164178,63845.0,63844.0,0.82912482]
[1727755116295,0.00164178,63845.0,63844.0,0.84747332]
[1727755116963,0.00164178,63845.0,63844.0,0.72849088]
[1727755117439,0.00164178,63845.0,63844.0,0.82912482]
[1727755117701,0.00164178,63845.0,63844.0,0.84742017]
[1727755121820,0.00164178,63845.0,63844.0,0.82912482]
[1727755122023,0.00164178,63845.0,63844.0,0.84738772]
[1727755122451,0.00164178,63845.0,63844.0,0.82912482]
[1727755122700,0.00164178,63845.0,63844.0,0.84739441]
[1727755124256,0.00164178,63845.0,63844.0,0.86255036]
[1727755125171,0.00164178,63845.0,63844.0,0.84739441]
[1727755125409,0.00164178,63845.0,63844.0,0.84429031]
[1727755125609,0.00164178,63845.0,63844.0,0.86258691]
[1727755127354,0.00164178,63845.0,63844.0,0.86258931]
[1727755128025,0.00164178,63845.0,63844.0,0.95682931]
[1727755128233,0.00164178,63845.0,63844.0,0.86258931]
[1727755128486,0.00164178,63845.0,63844.0,0.86259574]
[1727755128721,0.00164178,63845.0,63844.0,0.84743025]
[1727755128924,0.00164178,63845.0,63844.0,0.86260743]
[1727755130638,0.00164178,63845.0,63844.0,0.66262499]
[1727755130867,0.00164178,63845.0,63844.0,0.76643025]
[1727755131563,0.00164178,63845.0,63844.0,0.73412482]
[1727755131802,0.00064178,63845.0,63844.0,0.73841832]
[1727755132028,0.00064178,63845.0,63844.0,0.74841832]
[1727755132275,0.00164178,63845.0,63844.0,0.75641832]
[1727755132722,0.00164178,63845.0,63844.0,0.77159601]
[1727755135099,0.00164178,63845.0,63844.0,0.80088008]
[1727755135360,0.00164178,63845.0,63844.0,0.75330446]
[1727755135616,0.00164178,63845.0,63844.0,0.78575131]
[1727755136152,0.00164178,63845.0,63844.0,0.77163256]
[1727755136303,0.00164178,63845.0,63844.0,0.67223242]
[1727755136556,0.00164178,63845.0,63844.0,0.51777462]
[1727755136786,0.00164178,63845.0,63844.0,0.48638277]
[1727755137311,0.00164178,63845.0,63844.0,0.468022]
[1727755137537,0.00136056,63845.0,63844.0,0.468022]
[1727755138196,0.00136056,63845.0,63844.0,0.47118234]
[1727755138690,0.00136056,63845.0,63844.0,0.45283702]
[1727755141251,0.07666056,63845.0,63844.0,0.29880649]
[1727755141475,0.07666056,63845.0,63844.0,0.19880649]
[1727755141699,0.14717714,63845.0,63844.0,0.19880649]
[1727755141924,0.3374438,63845.0,63844.0,0.19880649]
[1727755142183,0.3364438,63845.0,63844.0,0.19080649]
[1727755142405,0.33647859,63845.0,63844.0,0.18280649]
[1727755142609,0.33647859,63845.0,63844.0,0.19173023]
[1727755142846,0.24242169,63845.0,63844.0,0.18973023]
[1727755143075,0.16971771,63845.0,63844.0,0.18973023]
[1727755143298,0.24242169,63845.0,63844.0,0.1900825]
[1727755143518,0.33647884,63845.0,63844.0,0.1900825]
[1727755143771,0.24242472,63845.0,63844.0,0.1900825]
[1727755143999,0.24237729,63845.0,63844.0,0.1900825]
[1727755144222,0.24237729,63845.0,63844.0,0.1910825]
[1727755144223,0.07566056,63845.0,63844.0,0.1910825]
[1727755144441,0.14618411,63845.0,63844.0,0.1910825]
[1727755145412,0.07566056,63845.0,63844.0,0.1910825]
[1727755145639,0.14618411,63845.0,63844.0,0.1910825]
[1727755146100,0.14617463,63845.0,63844.0,0.1910825]
[1727755146618,0.07566056,63845.0,63844.0,0.1910825]
[1727755147976,0.12265628,63845.0,63844.0,0.1910825]
[1727755148904,0.12265161,63845.0,63844.0,0.1910825]
[1727755149374,0.07566056,63845.0,63844.0,0.1910825]
[1727755150537,0.00036056,63845.0,63844.0,0.1910825]
[1727755150798,0.00036056,63845.0,63844.0,0.2140825]
[1727755151032,0.00036056,63845.0,63844.0,0.21721472]
[1727755151510,0.00036056,63845.0,63844.0,0.21621472]
[1727755151733,0.00136056,63845.0,63844.0,0.22221472]
[1727755152200,0.00136056,63845.0,63844.0,0.31321472]
[1727755152201,0.00036056,63845.0,63844.0,0.31321472]
[1727755152402,0.00036056,63845.0,63844.0,0.48067252]
[1727755152673,0.00036056,63845.0,63844.0,0.4665403]
[1727755152921,0.00036056,63845.0,63844.0,0.6397403]
[1727755153143,0.00036056,63845.0,63844.0,0.6497403]
[1727755154303,0.00036056,63845.0,63844.0,0.6397403]
[1727755155237,0.00136056,63845.0,63844.0,0.6487403]
[1727755155468,0.00136056,63845.0,63844.0,0.6507403]
[1727755155689,0.00136056,63845.0,63844.0,0.6617403]
[1727755157763,0.00136056,63845.0,63844.0,0.6597403]
[1727755159207,0.00136056,63845.0,63844.0,0.5839403]
[1727755159438,0.00136056,63845.0,63844.0,0.70292274]
[1727755159708,0.00136056,63845.0,63844.0,0.5839403]
[1727755159935,0.00136056,63845.0,63844.0,0.70292274]
[1727755162546,0.00136056,63845.0,63844.0,0.60552274]
[1727755163524,0.00136056,63845.0,63844.0,0.3070825]
[1727755163764,0.00136056,63845.0,63844.0,0.42606494]
[1727755165609,0.00136056,63845.0,63844.0,0.4201412]
[1727755165862,0.00136056,63845.0,63844.0,0.41655154]
[1727755172693,0.02591647,63845.0,63844.0,0.41655154]
[1727755173421,0.17418917,63845.0,63844.0,0.1975691]
[1727755173652,0.22117097,63845.0,63844.0,0.0359381]
[1727755173883,0.26913709,63845.0,63844.0,0.0359381]
[1727755174132,0.26913709,63845.0,63844.0,0.021646]
[1727755174358,0.26813709,63845.0,63844.0,0.001646]
[1727755174607,0.26813709,63845.0,63844.0,0.006646]
[1727755174835,0.26813709,63845.0,63844.0,0.013646]
[1727755175059,0.26813709,63845.0,63844.0,0.001646]
[1727755175284,0.26813709,63845.0,63844.0,0.02595113]
[1727755175581,0.26813709,63845.0,63844.0,0.00599827]
[1727755176265,0.26813709,63845.0,63844.0,0.005646]
[1727755176963,0.26813709,63845.0,63844.0,0.010646]
[1727755177204,0.26813709,63845.0,63844.0,0.005646]
[1727755177433,0.26813709,63845.0,63844.0,0.01859886]
[1727755177674,0.26785587,63845.0,63844.0,0.007646]
[1727755177913,0.42448487,63845.0,63844.0,0.007646]
[1727755178131,0.25906425,63845.0,63844.0,0.004646]
[1727755178350,0.42451297,63845.0,63844.0,0.004646]
[1727755178597,0.42451297,63845.0,63844.0,0.005646]
[1727755179939,0.26788397,63845.0,63844.0,0.005646]
[1727755180158,0.42451297,63845.0,63844.0,0.005646]
[1727755181944,0.26788397,63845.0,63844.0,0.005646]
[1727755182170,0.42451297,63845.0,63844.0,0.005646]
[1727755182420,0.42451297,63845.0,63844.0,0.01995113]
[1727755182639,0.42451297,63845.0,63844.0,0.00599827]
[1727755182857,0.26788397,63845.0,63844.0,0.00599827]
[1727755183148,0.26786478,63845.0,63844.0,0.00599827]
[1727755183362,0.42449378,63845.0,63844.0,0.00599827]
[1727755184250,0.42449378,63845.0,63844.0,0.16762927]
[1727755184251,0.19006478,63845.0,63844.0,0.16762927]
[1727755184740,0.11858821,63845.0,63844.0,0.16762927]
[1727755184969,0.18513525,63845.0,63844.0,0.00599827]
[1727755185188,0.38330469,63845.0,63844.0,0.00599827]
[1727755185418,0.26586478,63845.0,63844.0,0.005646]
[1727755185632,0.42249378,63845.0,63844.0,0.005646]
[1727755186506,0.42249378,63845.0,63844.0,0.004646]
[1727755186749,0.42549378,63845.0,63844.0,0.001646]
[1727755186962,0.42649378,63845.0,63844.0,0.001646]
[1727755187221,0.42249378,63845.0,63844.0,0.001646]
[1727755187647,0.43049378,63845.0,63844.0,0.002646]
[1727755188097,0.43041107,63845.0,63844.0,0.002646]
[1727755188316,0.5478349,63845.0,63844.0,0.002646]
[1727755188980,0.43041107,63845.0,63844.0,0.002646]
[1727755193044,0.43112277,63845.0,63844.0,0.002646]
[1727755195282,0.54848071,63845.0,63844.0,0.002646]
[1727755197605,0.54819898,63845.0,63844.0,0.002646]
[1727755201339,0.31576998,63845.0,63844.0,0.002646]
[1727755201594,0.31573978,63845.0,63844.0,0.002646]
[1727755201814,0.44801526,63845.0,63844.0,0.002646]
[1727755202034,0.29138626,63845.0,63844.0,0.002646]
[1727755202256,0.33065053,63845.0,63844.0,0.002646]
[1727755205672,0.17402153,63845.0,63844.0,0.002646]
[1727755205904,0.33065053,63845.0,63844.0,0.002646]
[1727755206135,0.17402153,63845.0,63844.0,0.002646]
[1727755206417,0.1740963,63845.0,63844.0,0.002646]
[1727755206620,0.3307253,63845.0,63844.0,0.002646]
[1727755207042,0.1740963,63845.0,63844.0,0.002646]
[1727755207908,0.1740963,63845.0,63844.0,0.007646]
[1727755208128,0.10193176,63845.0,63844.0,0.257177]
[1727755208585,0.07845371,63845.0,63844.0,0.257177]
[1727755208805,0.008,63845.0,63844.0,0.257177]
[1727755209034,0.05496802,63845.0,63844.0,0.257177]
[1727755209286,0.008,63845.0,63844.0,0.333277]
[1727755209523,0.008823,63845.0,63844.0,0.333277]
[1727755210434,0.087123,63845.0,63844.0,0.333277]
[1727755210691,0.081123,63845.0,63844.0,0.332277]
[1727755210907,0.079123,63845.0,63844.0,0.6117348]
[1727755211341,0.082123,63845.0,63844.0,0.6117348]
[1727755212350,0.079123,63845.0,63844.0,0.6117348]
[1727755212561,0.079123,63845.0,63844.0,0.6137348]
[1727755212810,0.07883293,63845.0,63844.0,0.6137348]
[1727755213028,0.07883293,63845.0,63844.0,0.6117348]
[1727755213520,0.07983293,63845.0,63844.0,0.6207348]
[1727755213741,0.07983293,63845.0,63844.0,0.7028848]
[1727755214196,0.07983293,63845.0,63844.0,0.7118848]
[1727755216053,0.07944287,63845.0,63844.0,0.7118848]
[1727755217731,0.07916094,63845.0,63844.0,0.7118848]
[1727755217951,0.07916094,63845.0,63844.0,0.72619984]
[1727755218169,0.07784376,63845.0,63844.0,0.72619984]
[1727755218842,0.001,63845.0,63844.0,0.72619984]
[1727755219793,0.001,63845.0,63844.0,0.72419984]
[1727755220259,0.001,63845.0,63844.0,0.21201104]
[1727755220481,0.001,63845.0,63844.0,0.11411104]
[1727755220712,0.09492762,63845.0,63844.0,0.11411104]
[1727755221206,0.09492762,63845.0,63844.0,0.099796]
[1727755221420,0.09492762,63845.0,63844.0,0.11374624]
[1727755221676,0.26033548,63845.0,63844.0,0.10674624]
[1727755221943,0.26033548,63845.0,63844.0,0.10974624]
[1727755222189,0.26033548,63845.0,63844.0,0.10074624]
[1727755222406,0.26033548,63845.0,63844.0,0.25937724]
[1727755222407,0.16640786,63845.0,63844.0,0.25937724]
[1727755222637,0.16594366,63845.0,63844.0,0.25437724]
[1727755222859,0.25889317,63845.0,63844.0,0.25437724]
[1727755223319,0.14916351,63845.0,63844.0,0.25437724]
[1727755223545,0.14916498,63845.0,63844.0,0.25437724]
[1727755223771,0.07871298,63845.0,63844.0,0.25437724]
[1727755223997,0.07871298,63845.0,63844.0,0.25537724]
[1727755225418,0.07851894,63845.0,63844.0,0.25537724]
[1727755225899,0.12548591,63845.0,63844.0,0.25537724]
[1727755226392,0.12548456,63845.0,63844.0,0.25537724]
[1727755226622,0.07816809,63845.0,63844.0,0.25537724]
[1727755227317,0.14861652,63845.0,63844.0,0.25537724]
[1727755227754,0.14833485,63845.0,63844.0,0.25537724]
[1727755228401,0.14833625,63845.0,63844.0,0.25537724]
[1727755231368,0.36100281,63845.0,63844.0,0.09874624]
[1727755231605,0.40004422,63845.0,63844.0,0.09874624]
[1727755231859,0.55667322,63845.0,63844.0,0.084796]
[1727755232087,0.79015807,63845.0,63844.0,0.084796]
[1727755232361,0.5565468,63845.0,63844.0,0.084796]
[1727755232619,0.95183686,63845.0,63844.0,0.084796]
[1727755232850,0.80503165,63845.0,63844.0,0.084796]
[1727755233096,0.5715468,63845.0,63844.0,0.084796]
[1727755233335,0.5723698,63845.0,63844.0,0.084796]
[1727755233825,0.5723698,63845.0,63844.0,0.083796]
[1727755234053,0.72088615,63845.0,63844.0,0.083796]
[1727755234278,0.7188815,63845.0,63844.0,0.083796]
[1727755234506,0.7288815,63845.0,63844.0,0.084796]
[1727755234984,0.73186295,63845.0,63844.0,0.085796]
[1727755235223,0.7218601,63845.0,63844.0,0.084796]
[1727755235480,0.79461358,63845.0,63844.0,0.085796]
[1727755235704,0.5733698,63845.0,63844.0,0.085796]
[1727755235929,0.67651588,63845.0,63844.0,0.085796]
[1727755236428,0.67651588,63845.0,63844.0,0.00422578]
[1727755236429,0.68651588,63845.0,63844.0,0.00422578]
[1727755236889,0.5833698,63845.0,63844.0,0.00422578]
[1727755237821,0.74615287,63845.0,63844.0,0.00422578]
[1727755238559,0.65145287,63845.0,63844.0,0.00422578]
[1727755238814,0.63558474,63845.0,63844.0,0.00422578]
[1727755239043,0.49482387,63845.0,63844.0,0.00422578]
[1727755239730,0.65145287,63845.0,63844.0,0.00422578]
[1727755240192,0.64545287,63845.0,63844.0,0.00322578]
[1727755240442,0.48882387,63845.0,63844.0,0.00322578]
[1727755240670,0.48182387,63845.0,63844.0,0.00322578]
[1727755240906,0.64745287,63845.0,63844.0,0.00322578]
[1727755241183,0.65045287,63845.0,63844.0,0.00422578]
[1727755241410,0.64145287,63845.0,63844.0,0.00322578]
[1727755241641,0.79789965,63845.0,63844.0,0.00422578]
[1727755241874,0.65045287,63845.0,63844.0,0.00422578]
[1727755243659,0.49382387,63845.0,63844.0,0.00422578]
[1727755243924,0.65045287,63845.0,63844.0,0.00422578]
[1727755244161,0.49382387,63845.0,63844.0,0.00422578]
[1727755245140,0.49382387,63845.0,63844.0,0.00587178]
[1727755247829,0.41254208,63845.0,63844.0,0.10397178]
[1727755248329,0.41254208,63845.0,63844.0,0.11508319]
[1727755249080,0.45231361,63845.0,63844.0,0.11508319]
[1727755249313,0.27240408,63845.0,63844.0,0.27171419]
[1727755249558,0.08616946,63845.0,63844.0,0.27171419]
[1727755249817,0.015823,63845.0,63844.0,0.27171419]
[1727755250051,0.06271966,63845.0,63844.0,0.27171419]
[1727755250319,0.06271966,63845.0,63844.0,0.11508319]
[1727755250578,0.015823,63845.0,63844.0,0.11508319]
[1727755251280,0.08616946,63845.0,63844.0,0.11508319]
[1727755251742,0.08616946,63845.0,63844.0,0.01698319]
[1727755251984,0.10962101,63845.0,63844.0,0.01698319]
[1727755252224,0.015823,63845.0,63844.0,0.01698319]
[1727755252467,0.1722808,63845.0,63844.0,0.01698319]
[1727755252734,0.26607881,63845.0,63844.0,0.01698319]
[1727755252934,0.43035134,63845.0,63844.0,0.01698319]
[1727755253419,0.50781134,63845.0,63844.0,0.01698319]
[1727755254345,0.50769422,63845.0,63844.0,0.01698319]
[1727755258334,0.41389638,63845.0,63844.0,0.01698319]
[1727755259219,0.41389638,63845.0,63844.0,0.00587178]
[1727755259442,0.53114368,63845.0,63844.0,0.01699583]
[1727755259669,0.53114368,63845.0,63844.0,0.00587178]
[1727755260400,0.53114368,63845.0,63844.0,0.01699583]
[1727755260637,0.53114368,63845.0,63844.0,0.00587178]
[1727755260831,0.53114368,63845.0,63844.0,0.01699583]
[1727755261089,0.53114368,63845.0,63844.0,0.00587178]
[1727755261321,0.53114368,63845.0,63844.0,0.01699583]
[1727755261547,0.39889638,63845.0,63844.0,0.01499583]
[1727755261773,0.40189638,63845.0,63844.0,0.01599583]
[1727755262030,0.41089638,63845.0,63844.0,0.01699583]
[1727755262287,0.40789638,63845.0,63844.0,0.00487178]
[1727755262512,0.2467408,63845.0,63844.0,0.00487178]
[1727755262787,0.41205799,63845.0,63844.0,0.00487178]
[1727755263031,0.41205799,63845.0,63844.0,0.01599583]
[1727755263270,0.40305799,63845.0,63844.0,0.00387178]
[1727755263750,0.41005799,63845.0,63844.0,0.01599583]
[1727755263982,0.41005799,63845.0,63844.0,0.00487178]
[1727755264307,0.41005799,63845.0,63844.0,0.01599583]
[1727755264413,0.41005799,63845.0,63844.0,0.00487178]
[1727755264638,0.41005799,63845.0,63844.0,0.01599583]
[1727755264883,0.41005799,63845.0,63844.0,0.00487178]
[1727755266054,0.56668699,63845.0,63844.0,0.00487178]
[1727755266286,0.64488699,63845.0,63844.0,0.00487178]
[1727755266751,0.80331202,63845.0,63844.0,0.00487178]
[1727755266987,0.64668302,63845.0,63844.0,0.00487178]
[1727755267227,0.64488699,63845.0,63844.0,0.00487178]
[1727755267453,0.64460237,63845.0,63844.0,0.00487178]
[1727755267676,0.64432055,63845.0,63844.0,0.00487178]
[1727755268934,0.48769155,63845.0,63844.0,0.00487178]
[1727755269176,0.40949155,63845.0,63844.0,0.00487178]
[1727755270354,0.40949155,63845.0,63844.0,0.01600788]
[1727755270638,0.40949155,63845.0,63844.0,0.00487178]
[1727755270903,0.68512652,63845.0,63844.0,0.01600788]
[1727755271398,0.68512652,63845.0,63844.0,0.00487178]